fUSD/lending_fUSD_20241108
["ID","MTS","AMOUNT","RATE_DAILY","PERIOD"]
[341700289,1731102425344,-200.0,0.00028756,7]
[341700290,1731102425367,-134.15850782,0.00028774,2]
[341700291,1731102446124,-26.56040218,0.00028774,2]
[341700292,1731102446382,-171.49,0.00028883,2]
[341700293,1731102446425,-133.76011,0.00028914,30]
[341700295,1731102589605,680.0,0.000247,2]
[341700296,1731102590126,646.0,0.000247,2]
[341700299,1731102632079,-250.0,0.00028903,2]
[341700301,1731102632089,-190.64989,0.00028914,30]
[341700302,1731102632098,-1000.0,0.00028919,2]
[341700303,1731102632108,-250.0,0.00028919,2]
[341700304,1731102632118,-295.78,0.00029005,2]
[341700305,1731102632127,-624.12,0.00029157,2]
[341700306,1731102632137,-728.4,0.00029304,2]
[341700307,1731102632146,-1200.68,0.0002933,10]
[341700308,1731102632156,-1450.53,0.00029534,7]
[341700309,1731102632165,-498.0,0.00029536,2]
[341700310,1731102632175,-165.39,0.00029593,2]
[341700311,1731102632184,-153.62,0.000296,2]
[341700312,1731102632193,-624.12,0.00029611,2]
[341700313,1731102632202,-1945.55665477,0.0002981,2]
[341700314,1731102632244,-54.44334523,0.0002981,2]
[341700315,1731102632254,-786.2575,0.000299,2]
[341700316,1731102632264,-421.30985835,0.000299,15]
[341700317,1731102632275,-421.30985833,0.00029915,15]
[341700318,1731102632285,-421.30985833,0.0002993,15]
[341700324,1731102632540,-1944.75,0.00029936,2]
[341700326,1731102632550,-9965.1299,0.00029936,2]
[341700328,1731102632559,-421.30985833,0.00029945,15]
[341700329,1731102632568,-421.30985833,0.0002996,15]
[341700330,1731102632578,-421.30985833,0.00029976,15]
[341700331,1731102632587,-600.41,0.0002999,10]
[341700332,1731102632596,-1669.84970617,0.0002999,2]
[341700333,1731102632607,-421.30985833,0.00029991,15]
[341700334,1731102632619,-1000.0,0.00029999,2]
[341700335,1731102632628,-165052.585151,0.0003,2]
[341700336,1731102632651,-1658.26750842,0.0003,2]
[341700341,1731102638291,-306.462702,0.00029999,2]
[341700342,1731102638423,-193.537298,0.00029999,2]
[341700343,1731102638432,-462.719072,0.00029999,2]
[341700477,1731102639766,2301.1,0.00030136,120]
[341700513,1731102640045,-37.280928,0.00029999,2]
[341700515,1731102640055,-640.14106635,0.00029999,2]
[341700517,1731102640064,-351.33600566,0.0003,2]
[341700706,1731102643164,-341.46735558,0.0002999,10]
[341700707,1731102643275,-278.96264442,0.0002999,10]
[341700708,1731102643285,-4719.10281562,0.0003,2]
[341700709,1731102643387,-10924.74796239,0.0003,2]
[341700710,1731102643435,-16081.89230979,0.0003,2]
[341700713,1731102646121,-382.677465,0.0003,2]
[341700714,1731102646140,-4382.91264229,0.0003,2]
[341700715,1731102646153,-1008.94147768,0.0003,2]
[341700716,1731102646363,-36.86783464,0.0003,2]
[341700717,1731102646375,-7662.58726551,0.0003,2]
[341700718,1731102646387,-15033.83347897,0.0003,2]
[341700724,1731102872361,2205.22,0.00030136,120]
[341700727,1731102970323,4000.0,0.000246,30]
[341700728,1731103050632,4000.0,0.000246,30]
[341700729,1731103103981,2113.34,0.00030136,120]
[341700731,1731103357657,2025.28,0.00030136,120]
[341700734,1731103570590,1940.9,0.00030136,120]
[341700735,1731103645096,-450.0,0.00021,2]
[341700736,1731103645117,-500.0,0.00023,2]
[341700737,1731103645138,-1000.0,0.00025,30]
[341700738,1731103645159,-550.0,0.00025,2]
[341700739,1731103645181,-736.74,0.00026475,2]
[341700740,1731103645202,-700.0,0.00027,30]
[341700741,1731103645223,-251.26518786,0.00027,2]
[341700742,1731103699505,150.0,0.00018123,2]
[341700743,1731103743194,168.97,0.00028363,120]
[341700744,1731103749149,-348.73481214,0.00027,2]
[341700745,1731103801737,150.0,0.00018123,2]
[341700749,1731103832338,-433.23,0.00027827,2]
[341700750,1731103832348,-177.87075532,0.00028082,2]
[341700751,1731103832387,-854.98218781,0.00028082,2]
[341700752,1731103832399,-5696.30705687,0.00028082,2]
[341700753,1731103832409,-164.77,0.00028087,2]
[341700754,1731103832419,-23900.0,0.00028103,2]
[341700755,1731103832428,-200.0,0.00028137,2]
[341700756,1731103832438,-305.68,0.00028152,2]
[341700757,1731103832447,-250.0,0.00028184,2]
[341700758,1731103832457,-433.23,0.00028274,2]
[341700759,1731103832468,-354.45,0.0002828,2]
[341700760,1731103832478,-150.0,0.00028287,2]
[341700761,1731103832487,-200.0,0.00028354,7]
[341700762,1731103832497,-667.51,0.00028365,2]
[341700763,1731103832507,-346.52,0.00028368,2]
[341700764,1731103832516,-222.94,0.00028372,2]
[341700765,1731103832526,-200.0,0.00028376,2]
[341700766,1731103832535,-1852.42,0.00028416,2]
[341700767,1731103832545,-250.0,0.00028416,2]
[341700768,1731103832555,-1000.0,0.00028444,2]
[341700769,1731103832565,-433.23,0.00028721,2]
[341700770,1731103832577,-736.74,0.00028739,2]
[341700771,1731103832586,-308.18,0.00028911,30]
[341700772,1731103832596,-897.0,0.00028999,2]
[341700773,1731103832605,-2305.0,0.00029,2]
[341700775,1731103832615,-650.0,0.00029,2]
[341700777,1731103832624,-166.91,0.0002906,2]
[341700779,1731103832633,-433.23,0.00029169,2]
[341700780,1731103832642,-9172.82,0.0002926,7]
[341700782,1731103832651,-305.68,0.0002956,2]
[341700784,1731103832660,-455.47856214,0.000296,2]
[341700786,1731103832670,-433.23,0.00029616,2]
[341700788,1731103832679,-2000.0,0.000297,2]
[341700790,1731103832689,-264.19,0.000298,2]
[341700792,1731103832698,-843.5656,0.000298,2]
[341700794,1731103832708,-251.36633835,0.000298,2]
[341700797,1731103832717,-251.36633835,0.0002985,2]
[341700799,1731103832727,-5924.0,0.00029855,2]
[341700801,1731103832736,-242.568,0.00029855,2]
[341700803,1731103832745,-1158.0,0.00029855,2]
[341700805,1731103832754,-13618.0,0.00029855,2]
[341700807,1731103832763,-427.75,0.00029869,2]
[341700809,1731103832772,-1287.720925,0.0002988,10]
[341700811,1731103832781,-164.74,0.00029894,2]
[341700813,1731103832791,-228.58717885,0.00029899,2]
[341700814,1731103832801,-251.36633835,0.00029899,2]
[341700815,1731103832811,-29034.13845176,0.000299,2]
[341700816,1731103832828,-641.62552363,0.000299,2]
[341700817,1731103832994,-471.55435349,0.000299,2]
[341700818,1731103833005,-1545.43948956,0.000299,2]
[341700819,1731103833017,-917.61691343,0.000299,2]
[341700834,1731103838740,-1090.0,0.00029855,2]
[341700835,1731103838750,-906.18110001,0.000299,2]
[341700859,1731103840304,-884.99799998,0.000299,2]
[341700869,1731103843230,150.55831955,0.00018123,2]
[341700870,1731103843465,-645.40079681,0.000299,2]
[341700871,1731103843476,-82702.68052145,0.000299,2]
[341700872,1731103843488,-2537.66929625,0.000299,2]
[341700873,1731103843599,-10512.3023305,0.000299,2]
[341700874,1731103843611,-2994.96726577,0.000299,2]
[341700887,1731103846315,-2295.5082188,0.000299,2]
[341700888,1731103861112,300.0,0.00019725,2]
[341700889,1731103861824,420.0,0.00021484,2]
[341700890,1731103862568,587.0,0.00023401,2]
[341700891,1731103863715,793.0,0.00025488,2]
[341700892,1731103865419,1860.03,0.00030136,120]
[341700894,1731103957345,160.88,0.00015342,2]
[341700895,1731104092726,1782.53,0.00030136,120]
[341700898,1731104313337,1708.25,0.00030136,120]
[341700900,1731104493190,437.65,0.00026966,120]
[341700901,1731104493449,437.65,0.00030336,120]
[341700902,1731104576321,1637.08,0.00030136,120]
[341700903,1731104679187,150.0,0.00020111,2]
[341700904,1731104708312,145229.41716531,0.00016,2]
[341700905,1731104710610,15862.51170007,0.000154,2]
[341700906,1731104719948,2171.12066442,9e-05,2]
[341700907,1731104731625,195.386559,0.000153,2]
[341700908,1731104734622,150.33930104,0.0001,2]
[341700909,1731104736283,150.0,9e-05,2]
[341700910,1731104755477,28364.3645437,6.94e-05,2]
[341700912,1731104772659,152.38,0.00015342,2]
[341700914,1731104788221,1568.86,0.00030136,120]
[341700915,1731104792576,856.48337091,0.00015,2]
[341700916,1731104826107,-1441.0,0.000249,2]
[341700917,1731104826131,-789.99,0.00026188,2]
[341700918,1731104826154,-764.02,0.00026537,2]
[341700919,1731104826177,-250.0,0.00026591,2]
[341700920,1731104826199,-250.0,0.00026592,2]
[341700921,1731104826222,-4518.02299879,0.0002661,2]
[341700922,1731104843708,1080.82473275,0.0001305,2]
[341700923,1731104847119,-512.43280517,0.0002661,2]
[341700924,1731104883712,1313612.28009419,0.00015,2]
[341700929,1731104946091,-4778.44,0.00026565,2]
[341700930,1731104946112,-26472.1499477,0.0002661,2]
[341700931,1731104946132,-220.72,0.00026632,2]
[341700932,1731104946153,-500.0,0.00026659,2]
[341700933,1731104946174,-4105.15,0.00026687,2]
[341700934,1731104946195,-2100.03309645,0.00026687,2]
[341700935,1731104946218,-1092.2,0.00026769,2]
[341700936,1731104946240,-306.72,0.00026769,2]
[341700937,1731104946263,-575.93,0.00026776,2]
[341700938,1731104946285,-2279.79,0.00026777,2]
[341700939,1731104946309,-154.152,0.00026817,2]
[341700940,1731104946333,-3971.18075,0.00026845,2]
[341700941,1731104946355,-218.5325,0.00026845,2]
[341700942,1731104946375,-5042.0,0.00026896,2]
[341700943,1731104946396,-200.0,0.00026917,2]
[341700944,1731104946417,-262.87,0.00026917,2]
[341700945,1731104946451,-1763.18871936,0.00027,2]
[341700946,1731104946474,-292.77,0.00027032,30]
[341700947,1731104946495,-219.85,0.00027034,2]
[341700948,1731104946515,-313.44,0.0002709,2]
[341700949,1731104963075,340.19,0.00027003,2]
[341700950,1731104993071,5000.0,0.00031,120]
[341700951,1731105018253,5000.0,0.00031,120]
[341700952,1731105018370,370.25,0.00027056,2]
[341700953,1731105026054,23900.0,0.00027104,2]
[341700971,1731105031611,-1000.0,0.0002715,2]
[341700972,1731105031620,-166.91,0.0002715,2]
[341700973,1731105031630,-853.2046301,0.00027207,2]
[341700974,1731105031641,-353.76009623,0.00027207,2]
[341700975,1731105031653,-1072.82527367,0.00027207,2]
[341700976,1731105031663,-200.0,0.00027397,7]
[341700977,1731105031672,-2279.79,0.00027637,2]
[341700978,1731105031681,-166.76,0.00027775,2]
[341700979,1731105031690,-250.0,0.00027827,2]
[341700980,1731105031700,-157.9911969,0.000279,2]
[341700981,1731105031709,-157.47145344,0.000279,2]
[341700982,1731105031718,-4524.5940902,0.000279,2]
[341700983,1731105031728,-228.7,0.00027909,2]
[341700984,1731105031737,-291.324,0.00027944,2]
[341700985,1731105031746,-181.7325,0.00027944,2]
[341700986,1731105031756,-719.12,0.00027948,18]
[341700987,1731105031766,-504.65712484,0.00027973,5]
[341700988,1731105031775,-164.92137389,0.00027973,5]
[341700989,1731105031785,-260.5300956,0.00027973,5]
[341700991,1731105031794,-160.15151768,0.00027973,5]
[341700993,1731105031805,-160.28531369,0.00027973,5]
[341700995,1731105031814,-500.0,0.00027973,2]
[341700997,1731105031823,-160.34526785,0.00027973,5]
[341700999,1731105031833,-500.0,0.00027973,5]
[341701001,1731105031842,-403.20280538,0.00027973,5]
[341701003,1731105031852,-500.0,0.00027973,5]
[341701004,1731105031862,-483.83249959,0.00027973,5]
[341701005,1731105031872,-202.21748038,0.00027973,5]
[341701006,1731105031882,-16138.59092657,0.0002799,2]
[341701014,1731105037566,-330.43338522,0.000279,2]
[341701015,1731105037575,-517.02,0.00027989,10]
[341701016,1731105037585,-7379.32242194,0.0002799,2]
[341701017,1731105037594,-400.0,0.00027999,10]
[341701018,1731105037603,-400.0,0.00027999,10]
[341701019,1731105037612,-500.0,0.00027999,2]
[341701020,1731105037621,-413.09874645,0.00027999,2]
[341701021,1731105037630,-500.0,0.00027999,2]
[341701022,1731105037639,-500.0,0.00027999,2]
[341701023,1731105037648,-590.98,0.00027999,7]
[341701024,1731105037657,-151.0,0.00027999,7]
[341701025,1731105037667,-151.0,0.00027999,7]
[341701026,1731105037675,-153.482325,0.00027999,7]
[341701027,1731105037685,-151.0,0.00027999,7]
[341701028,1731105037694,-7500.0,0.00027999,2]
[341701029,1731105037704,-6387.00299066,0.00027999,2]
[341701030,1731105037715,-151.0,0.00027999,7]
[341701031,1731105037725,-153.482325,0.00027999,7]
[341701032,1731105037734,-151.0,0.00027999,7]
[341701033,1731105037744,-151.0,0.00027999,7]
[341701034,1731105037753,-2371.214996,0.00027999,7]
[341701035,1731105037763,-151.0,0.00027999,7]
[341701036,1731105037772,-2371.214996,0.00027999,7]
[341701037,1731105037781,-151.0,0.00027999,7]
[341701038,1731105037791,-151.0,0.00027999,7]
[341701039,1731105037800,-151.0,0.00027999,7]
[341701041,1731105037813,-151.0,0.00027999,7]
[341701043,1731105037822,-151.0,0.00027999,7]
[341701045,1731105037831,-206.03846,0.00027999,7]
[341701047,1731105037840,-151.0,0.00027999,7]
[341701049,1731105037849,-151.0,0.00027999,7]
[341701051,1731105037859,-151.0,0.00027999,7]
[341701053,1731105037868,-151.0,0.00027999,7]
[341701055,1731105037877,-151.0,0.00027999,7]
[341701057,1731105037886,-459.746136,0.00027999,7]
[341701059,1731105037896,-459.746136,0.00027999,7]
[341701061,1731105037905,-151.0,0.00027999,7]
[341701062,1731105037914,-2093.1272011,0.00027999,2]
[341701063,1731105037925,-671.671,0.00027999,2]
[341701064,1731105037937,-235.2017989,0.00027999,2]
[341701065,1731105037946,-3000.0,0.00027999,2]
[341701066,1731105037955,-244.616604,0.00027999,7]
[341701067,1731105037964,-3000.0,0.00027999,2]
[341701069,1731105037973,-3000.0,0.00027999,2]
[341701071,1731105037982,-3000.0,0.00027999,2]
[341701073,1731105037991,-508.00244353,0.00027999,2]
[341701102,1731105038269,-2491.99755647,0.00027999,2]
[341701103,1731105038278,-3000.0,0.00027999,2]
[341701104,1731105038287,-3000.0,0.00027999,2]
[341701105,1731105038297,-3000.0,0.00027999,2]
[341701106,1731105038310,-3000.0,0.00027999,2]
[341701107,1731105038319,-3000.0,0.00027999,2]
[341701108,1731105038328,-3000.0,0.00027999,2]
[341701109,1731105038337,-3000.0,0.00027999,2]
[341701110,1731105038346,-151.0,0.00027999,7]
[341701111,1731105038355,-160.728877,0.00027999,7]
[341701112,1731105038364,-3000.0,0.00027999,2]
[341701113,1731105038374,-1797.97356653,0.00027999,2]
[341701114,1731105038385,-1202.02643347,0.00027999,2]
[341701116,1731105038394,-275.29398942,0.00027999,2]
[341701118,1731105038405,-1761.984,0.00027999,2]
[341701120,1731105038416,-962.72201058,0.00027999,2]
[341701122,1731105038425,-244.616604,0.00027999,7]
[341701124,1731105038434,-3000.0,0.00027999,2]
[341701126,1731105038442,-3000.0,0.00027999,2]
[341701128,1731105038452,-3000.0,0.00027999,2]
[341701130,1731105038461,-3000.0,0.00027999,2]
[341701132,1731105038472,-3000.0,0.00027999,2]
[341701134,1731105038481,-3000.0,0.00027999,2]
[341701136,1731105038490,-3000.0,0.00027999,2]
[341701138,1731105038499,-151.0,0.00027999,7]
[341701140,1731105038508,-3000.0,0.00027999,2]
[341701142,1731105038518,-3000.0,0.00027999,2]
[341701144,1731105038527,-3000.0,0.00027999,2]
[341701146,1731105038536,-3000.0,0.00027999,2]
[341701148,1731105038544,-3000.0,0.00027999,2]
[341701150,1731105038555,-3000.0,0.00027999,2]
[341701152,1731105038564,-2634.026132,0.00027999,2]
[341701154,1731105038573,-231.663716,0.00027999,7]
[341701156,1731105038583,-417.465843,0.00027999,7]
[341701158,1731105038592,-3218.41478037,0.00028,2]
[341701160,1731105038601,-14260.98192318,0.00028,2]
[341701162,1731105038610,-30461.05287504,0.00028,2]
[341701164,1731105038622,-1932.99629364,0.00028,2]
[341701255,1731105039565,-1124.1829386,0.00028,2]
[341701256,1731105039577,-2074.7045,0.00028,2]
[341701289,1731105042724,-417.465843,0.00027999,7]
[341701290,1731105042735,-174.62479,0.00027999,7]
[341701291,1731105042744,-728.169367,0.00028,2]
[341701292,1731105043031,-1382.77941794,0.00028,2]
[341701319,1731105046066,-500.0,0.00027973,2]
[341701321,1731105046075,-174.62479,0.00027999,7]
[341701323,1731105046085,-215.71394749,0.00028,2]
[341701324,1731105046303,-1149.11895,0.00028,2]
[341701325,1731105046336,-8812.3182,0.00028,2]
[341701326,1731105046349,-5969.0436591,0.00028,2]
[341701327,1731105046361,-290.90205113,0.00028,2]
[341701328,1731105048981,750.49,0.00026514,2]
[341701330,1731105080946,450.0,0.00021,2]
[341701331,1731105082085,500.0,0.00023,2]
[341701332,1731105082529,312.99675,0.00026423,2]
[341701333,1731105083429,550.0,0.00025,2]
[341701334,1731105084226,151.4745,0.00026423,2]
[341701335,1731105178749,5000.0,0.00031,120]
[341701336,1731105192432,2000.0,0.00031,120]
[341701337,1731105200811,2000.0,0.00031,120]
[341701338,1731105209885,3000.0,0.00031,120]
[341701339,1731105222086,3000.0,0.00031,120]
[341701340,1731105230131,3000.0,0.00031,120]
[341701341,1731105254258,5000.0,0.00031,120]
[341701342,1731105254894,1503.5,0.00030136,120]
[341701343,1731105270549,5000.0,0.00031,120]
[341701344,1731105286814,5000.0,0.00031,120]
[341701345,1731105294980,5000.0,0.00031,120]
[341701346,1731105302336,436.02,0.00027314,120]
[341701347,1731105302542,436.02,0.00030728,120]
[341701348,1731105304162,5000.0,0.00031,120]
[341701349,1731105324183,3000.0,0.00031,120]
[341701350,1731105355400,3000.0,0.00031,120]
[341701352,1731105473955,152.11,0.00015342,2]
[341701354,1731105495404,243.75546047,0.00030136,120]
[341701356,1731105843362,800.0,0.00026986,120]
[341701358,1731106035085,-161.98,0.00021886,2]
[341701359,1731106035108,-200.0,0.00024658,2]
[341701360,1731106035130,-200.0,0.00024658,2]
[341701361,1731106035152,-200.0,0.00024658,2]
[341701362,1731106035175,-822.71,0.00024799,2]
[341701363,1731106035198,-500.0,0.00024932,2]
[341701364,1731106035222,-927.17206816,0.00025931,2]
[341701365,1731106145339,-1303.83793184,0.00025931,2]
[341701366,1731106145359,-1789.97,0.00026173,2]
[341701367,1731106145379,-615.33,0.00026308,2]
[341701368,1731106145399,-2231.01,0.00026348,2]
[341701369,1731106145419,-200.0,0.00026366,2]
[341701370,1731106145439,-785.30969816,0.00026368,2]
[341701371,1731106147089,-1179.82030184,0.00026368,2]
[341701372,1731106147110,-200.0,0.00026378,2]
[341701373,1731106147131,-499.99,0.00026378,2]
[341701374,1731106147155,-166.91,0.00026603,2]
[341701375,1731106147177,-1000.0,0.00026604,2]
[341701376,1731106147199,-250.0,0.00026635,2]
[341701377,1731106147221,-165.92,0.00026649,2]
[341701378,1731106147242,-1711.72285016,0.00026754,2]
[341701379,1731106157094,-21983.93722,0.00026754,2]
[341701380,1731106162105,-250.0,0.00026685,2]
[341701381,1731106162126,-204.33992984,0.00026754,2]
[341701382,1731106162148,-898.83798422,0.00026755,2]
[341701383,1731106162169,-2231.01,0.00026765,2]
[341701384,1731106162189,-250.0,0.00026785,2]
[341701385,1731106162209,-300.0,0.00026835,2]
[341701386,1731106162231,-238.27,0.00026943,2]
[341701387,1731106162251,-759.06,0.00026962,2]
[341701388,1731106162274,-822.71,0.00027063,2]
[341701389,1731106162293,-1000.0,0.00027117,2]
[341701390,1731106203939,613.0,0.00024,2]
[341701391,1731106207047,583.0,0.00024,2]
[341701408,1731106231761,-588.90327259,0.00027181,2]
[341701409,1731106231918,-1642.10672741,0.00027181,2]
[341701410,1731106231928,-553.0,0.00027194,2]
[341701411,1731106231939,-538.38,0.00027236,120]
[341701412,1731106231948,-278.13,0.00027284,30]
[341701413,1731106231958,-200.0,0.00027397,7]
[341701414,1731106231968,-152.11,0.00027507,2]
[341701415,1731106231977,-2231.01,0.00027598,2]
[341701416,1731106231987,-2000.0,0.0002772,2]
[341701417,1731106231997,-210.80134354,0.000279,2]
[341701418,1731106232006,-166.0701119,0.000279,2]
[341701419,1731106232015,-177.01494674,0.000279,2]
[341701420,1731106232025,-1261.2681061,0.000279,2]
[341701421,1731106232034,-243.92477062,0.000279,2]
[341701422,1731106232043,-160.32896576,0.00027973,5]
[341701423,1731106232052,-160.32833789,0.00027973,5]
[341701424,1731106232062,-327.70970711,0.0002799,2]
[341701425,1731106232071,-327.70970711,0.0002799,2]
[341701426,1731106232080,-327.70970711,0.0002799,2]
[341701427,1731106232090,-430.85,0.0002799,10]
[341701428,1731106232099,-9618.372,0.00027999,2]
[341701429,1731106232110,-400.0,0.00027999,10]
[341701430,1731106232119,-300.0,0.00027999,120]
[341701431,1731106232128,-575.296,0.00027999,18]
[341701432,1731106232138,-566.35,0.00027999,7]
[341701433,1731106232147,-2896.57330234,0.00028,2]
[341701434,1731106232157,-108107.4842643,0.00028,2]
[341701483,1731106237889,-379.53,0.0002718,2]
[341701484,1731106237899,-1333363.23780786,0.00028,2]
[341701485,1731106237908,-7130.49096159,0.00028,2]
[341701486,1731106237918,-485522.22928766,0.00028,2]
[341701487,1731106238080,-90125.57426331,0.00028,2]
[341701503,1731106242962,-500.0,0.00027973,2]
[341701504,1731106242972,-503.87239915,0.00027973,5]
[341701505,1731106242982,-392308.86867338,0.00028,2]
[341701506,1731106242995,-1439922.1709007,0.00028,2]
[341701507,1731106243117,-682.22999238,0.00028,2]
[341701523,1731106245697,-382.475,0.00028,2]
[341701524,1731106245720,-1984.2000001,0.00028,2]
[341701531,1731106379975,33883.0,0.00027,60]
[341701534,1731106887222,-450.0,0.00021,2]
[341701535,1731106904015,369.29,0.00026585,120]
[341701538,1731107131140,-227.74396776,0.00023,2]
[341701539,1731107193177,10000.0,0.00020111,2]
[341701540,1731107243130,-162.36489081,0.00023,2]
[341701541,1731107251112,-109.89114143,0.00023,2]
[341701542,1731107251138,-612.90663619,0.00024201,2]
[341701550,1731107346411,-276.26336381,0.00024201,2]
[341701551,1731107346433,-200.0,0.00024658,2]
[341701552,1731107346455,-500.0,0.00024932,2]
[341701553,1731107346479,-550.0,0.00025,2]
[341701554,1731107346500,-165.92,0.00026112,2]
[341701555,1731107346524,-166.91,0.00026112,2]
[341701556,1731107346545,-163.74,0.00026155,2]
[341701557,1731107346567,-9000.88,0.00026155,2]
[341701558,1731107346590,-1000.0,0.00026167,2]
[341701559,1731107346613,-300.0,0.00026182,2]
[341701560,1731107346636,-836.62,0.00026386,2]
[341701561,1731107346658,-273.1,0.00026423,30]
[341701562,1731107346679,-889.17,0.00026465,2]
[341701563,1731107346702,-595.8,0.00026569,2]
[341701564,1731107346723,-296.25,0.00026571,2]
[341701565,1731107346745,-595.8,0.00026583,2]
[341701566,1731107346765,-500.0,0.00026593,2]
[341701567,1731107346786,-595.8,0.00026597,2]
[341701568,1731107346811,-595.8,0.00026611,2]
[341701569,1731107346835,-595.8,0.00026625,2]
[341701570,1731107346858,-595.8,0.00026638,2]
[341701571,1731107346880,-595.8,0.00026652,2]
[341701572,1731107346903,-595.8,0.00026666,2]
[341701573,1731107346925,-595.8,0.0002668,2]
[341701574,1731107346950,-250.0,0.00026687,2]
[341701575,1731107346972,-595.8,0.00026694,2]
[341701576,1731107346995,-595.8,0.00026708,2]
[341701577,1731107347017,-595.8,0.00026722,2]
[341701578,1731107347041,-595.8,0.00026736,2]
[341701579,1731107347067,-228.41,0.00026741,2]
[341701580,1731107347091,-595.8,0.0002675,2]
[341701581,1731107347113,-595.8,0.00026764,2]
[341701582,1731107347138,-595.8,0.00026778,2]
[341701583,1731107347160,-595.8,0.00026792,2]
[341701584,1731107347183,-595.8,0.00026806,2]
[341701585,1731107347207,-836.62,0.0002681,2]
[341701586,1731107347229,-595.8,0.0002682,2]
[341701587,1731107347250,-595.8,0.00026834,2]
[341701588,1731107347273,-260.92,0.00027,2]
[341701589,1731107347296,-600.0,0.00027,2]
[341701590,1731107347317,-166.5,0.00027067,2]
[341701591,1731107405705,694.72,0.00026351,2]
[341701592,1731107405956,694.72,0.00026775,2]
[341701601,1731107431849,-694.72,0.00027198,2]
[341701602,1731107431858,-344.42973622,0.00027397,2]
[341701603,1731107431900,-782.68026378,0.00027397,2]
[341701604,1731107431909,-1127.11,0.00027397,2]
[341701605,1731107431919,-1127.11,0.00027397,2]
[341701606,1731107431928,-1127.11,0.00027397,2]
[341701607,1731107431938,-1127.11,0.00027397,2]
[341701608,1731107431947,-1127.11,0.00027397,2]
[341701609,1731107431956,-1127.11,0.00027397,2]
[341701610,1731107431966,-372.84101194,0.00027397,2]
[341701611,1731107431981,-754.26898806,0.00027397,2]
[341701612,1731107431990,-1127.11,0.00027397,2]
[341701613,1731107432000,-806.34944736,0.00027397,2]
[341701614,1731107432052,-320.76055264,0.00027397,2]
[341701615,1731107432061,-1127.11,0.00027397,2]
[341701616,1731107432074,-1127.11,0.00027397,2]
[341701617,1731107432083,-1127.11,0.00027397,2]
[341701618,1731107432092,-1127.11,0.00027397,2]
[341701619,1731107432102,-1127.11,0.00027397,2]
[341701620,1731107432112,-1127.11,0.00027397,2]
[341701621,1731107432121,-1127.11,0.00027397,2]
[341701622,1731107432131,-1127.11,0.00027397,2]
[341701623,1731107432143,-1127.11,0.00027397,2]
[341701624,1731107432152,-1127.11,0.00027397,2]
[341701625,1731107432163,-1127.11,0.00027397,2]
[341701626,1731107432171,-1127.11,0.00027397,2]
[341701628,1731107432182,-1127.11,0.00027397,2]
[341701630,1731107432191,-1127.22879484,0.00027397,2]
[341701632,1731107432201,-153.0,0.00027397,2]
[341701634,1731107432210,-153.0,0.00027397,2]
[341701636,1731107432219,-166.85,0.00027497,2]
[341701638,1731107432228,-43090.73065373,0.000275,2]
[341701647,1731107432313,-427.53,0.000275,2]
[341701650,1731107432325,-1906.48754834,0.000275,2]
[341701797,1731107437979,-592.37453589,0.000275,2]
[341701798,1731107437990,-9469.78726204,0.000275,2]